bitfinex/quotes_BTCUSD_20250118
["timestamp","ask_amount","ask_price","bid_price","bid_amount"]
[1737205751260,1.1707542,103210.0,103200.0,0.02952889]
[1737205751408,1.66334205,103210.0,103200.0,0.02952889]
[1737205751747,1.76258286,103210.0,103200.0,0.02952889]
[1737205751969,0.25974291,103190.0,103180.0,0.29132666]
[1737205752338,0.29834291,103190.0,103180.0,0.29132666]
[1737205752550,0.26921043,103190.0,103180.0,0.29132666]
[1737205752949,0.0616,103190.0,103180.0,0.29132666]
[1737205753447,0.16934291,103190.0,103180.0,0.29132666]
[1737205753598,0.38390696,103190.0,103180.0,0.29132666]
[1737205754007,0.50610696,103190.0,103180.0,0.29132666]
[1737205755477,0.96289464,103190.0,103180.0,0.00059666]
[1737205755695,1.21289464,103190.0,103180.0,0.00059666]
[1737205755931,1.10515173,103190.0,103180.0,0.00059666]
[1737205756108,1.10515173,103190.0,103160.0,0.485058]
[1737205756109,0.1222,103170.0,103160.0,0.0004]
[1737205756313,0.55685363,103170.0,103160.0,0.0004]
[1737205756844,0.45992663,103170.0,103160.0,0.0004]
[1737205757224,0.13074291,103160.0,103150.0,0.2805473]
[1737205757383,0.30678372,103160.0,103150.0,0.2805473]
[1737205757580,0.34538372,103160.0,103150.0,0.2805473]
[1737205761507,0.16146752,103160.0,103150.0,0.2805473]
[1737205762218,0.16934291,103160.0,103150.0,0.2805473]
[1737205763178,0.16930291,103160.0,103150.0,0.2805473]
[1737205763399,0.16930291,103160.0,103150.0,0.2809755]
[1737205763601,0.17020213,103160.0,103150.0,0.2809755]
[1737205764218,0.14724213,103160.0,103150.0,0.2809755]
[1737205765347,0.17024213,103160.0,103150.0,0.2809755]
[1737205765712,0.26948294,103160.0,103150.0,0.2809755]
[1737205766910,0.4727899,103160.0,103150.0,0.2809755]
[1737205768833,0.37354909,103160.0,103150.0,0.2809755]
[1737205769791,0.3426737,103160.0,103150.0,0.2809755]
[1737205770017,0.45041661,103160.0,103150.0,0.2809755]
[1737205771309,0.35054909,103160.0,103150.0,0.2809755]
[1737205771933,0.37354909,103160.0,103150.0,0.2809755]
[1737205773187,0.4727899,103160.0,103150.0,0.2809755]
[1737205773361,0.5491899,103160.0,103150.0,0.2809755]
[1737205774730,0.6461259,103160.0,103150.0,0.0004282]
[1737205774932,0.6461259,103160.0,103150.0,0.0973742]
[1737205774933,0.5966899,103160.0,103150.0,0.0973742]
[1737205775316,0.6936259,103160.0,103150.0,0.0973742]
[1737205775665,0.5966899,103160.0,103150.0,0.0973742]
[1737205775866,0.82286671,103160.0,103150.0,0.0973742]
[1737205776227,0.6266899,103160.0,103150.0,0.0973742]
[1737205776363,0.7236259,103160.0,103150.0,0.0973742]
[1737205777003,0.6266899,103160.0,103150.0,0.0973742]
[1737205777674,0.6036899,103160.0,103150.0,0.0973742]
[1737205778164,0.6366899,103160.0,103150.0,0.0973742]
[1737205781270,0.49041661,103160.0,103150.0,0.0973742]
[1737205781454,0.5127899,103160.0,103150.0,0.0973742]
[1737205781655,0.41354909,103160.0,103150.0,0.0973742]
[1737205782971,0.6388899,103160.0,103150.0,0.0973742]
[1737205783185,0.7358259,103160.0,103150.0,0.0973742]
[1737205784146,0.7358259,103160.0,103150.0,0.0004282]
[1737205784529,0.6972259,103160.0,103150.0,0.0004282]
[1737205784732,0.7358259,103160.0,103150.0,0.0004282]
[1737205785133,1.29280962,103160.0,103150.0,0.0004282]
[1737205785294,1.09280962,103160.0,103150.0,0.00029241]
[1737205786085,1.6929263,103160.0,103150.0,0.00029241]
[1737205786273,0.273,103150.0,103140.0,0.00015249]
[1737205786415,0.82205263,103150.0,103140.0,0.00015249]
[1737205786888,0.92129344,103150.0,103140.0,0.00015249]
[1737205787210,0.82129344,103150.0,103140.0,0.00015249]
[1737205787421,0.61674982,103130.0,103120.0,0.0008285]
[1737205787631,0.71599063,103130.0,103120.0,0.0008285]
[1737205787810,0.75459063,103130.0,103120.0,0.0008285]
[1737205788019,0.85991144,103130.0,103120.0,0.0008285]
[1737205788653,1.24506863,103130.0,103120.0,0.0008285]
[1737205789260,1.23974782,103130.0,103120.0,0.0008285]
[1737205789459,1.13808491,103130.0,103120.0,0.0008285]
[1737205790168,1.23808491,103130.0,103120.0,0.0008285]
[1737205790373,0.751262,103130.0,103120.0,0.0978025]
[1737205790572,0.88200491,103130.0,103120.0,0.0008285]
[1737205791424,0.78925386,103130.0,103120.0,0.0008285]
[1737205791620,0.88925386,103130.0,103120.0,0.0008285]
[1737205792217,1.55254468,103130.0,103120.0,0.0008285]
[1737205792622,1.65585164,103130.0,103120.0,0.0008285]
[1737205793281,1.31427697,103130.0,103120.0,0.0008285]
[1737205793686,1.34427697,103130.0,103120.0,0.0008285]
[1737205793887,0.401274,103120.0,103110.0,0.00231223]
[1737205794179,0.84927737,103120.0,103110.0,0.00231223]
[1737205795978,1.10641594,103120.0,103110.0,0.00231223]
[1737205796243,0.2,103100.0,103090.0,0.01012857]
[1737205796441,0.47998372,103100.0,103090.0,0.01012857]
[1737205796642,0.47998372,103100.0,103090.0,0.10713057]
[1737205796643,0.51858372,103100.0,103090.0,0.10713057]
[1737205796848,0.51858372,103100.0,103090.0,0.01012857]
[1737205797405,0.5190884,103100.0,103090.0,0.10713057]
[1737205797605,0.5190884,103100.0,103090.0,0.01012857]
[1737205797880,0.6503884,103100.0,103090.0,0.01012857]
[1737205798089,0.7473814,103100.0,103090.0,0.01012857]
[1737205798433,0.6503884,103100.0,103090.0,0.01012857]
[1737205798634,0.7473814,103100.0,103090.0,0.01012857]
[1737205798831,0.8473814,103100.0,103090.0,0.01012857]
[1737205799954,0.8534614,103100.0,103090.0,0.01012857]
[1737205800986,1.15600917,103100.0,103090.0,0.01012857]
[1737205801581,1.05676836,103100.0,103090.0,0.01012857]
[1737205802147,0.80449536,103100.0,103090.0,0.01012857]
[1737205802353,0.10774291,103090.0,103080.0,0.28884486]
[1737205802559,0.20698372,103090.0,103080.0,0.28884486]
[1737205802765,0.22998372,103090.0,103080.0,0.28884486]
[1737205805614,0.09986752,103090.0,103080.0,0.291027]
[1737205806616,0.09986752,103090.0,103080.0,0.415627]
[1737205806814,0.19986752,103090.0,103080.0,0.415627]
[1737205807053,0.1,103090.0,103080.0,0.4186585]
[1737205807384,0.40317448,103090.0,103080.0,0.4186585]
[1737205807831,0.20330696,103090.0,103080.0,0.5686585]
[1737205808039,0.20330696,103090.0,103080.0,0.66789931]
[1737205808240,0.20330696,103090.0,103080.0,0.66832781]
[1737205808521,0.16450496,103090.0,103080.0,0.7762032]
[1737205808681,0.04000454,103100.0,103090.0,0.21283448]
[1737205808887,0.04000454,103100.0,103090.0,0.4198182]
[1737205809275,0.04000454,103100.0,103090.0,0.5758982]
[1737205809276,0.00140454,103100.0,103090.0,0.5758982]
[1737205809668,0.36488148,103140.0,103130.0,0.15]
[1737205809669,0.1,103140.0,103130.0,0.15]
[1737205809844,0.59730667,103150.0,103140.0,0.096955]
[1737205810144,0.59730667,103150.0,103140.0,0.34619581]
[1737205810517,0.59730667,103150.0,103140.0,0.5304712]
[1737205810909,0.59730667,103150.0,103140.0,0.42272829]
[1737205811112,0.01089922,103160.0,103150.0,0.15]
[1737205811311,0.01089922,103160.0,103150.0,0.34618681]
[1737205814716,0.01089922,103160.0,103150.0,0.45392972]
[1737205814905,0.01089922,103160.0,103150.0,0.4540622]
[1737205815354,0.01089922,103160.0,103150.0,0.4990622]
[1737205816199,0.01089922,103160.0,103150.0,0.5220622]
[1737205818256,0.01029037,103160.0,103150.0,0.5220622]
[1737205823903,0.01025037,103160.0,103150.0,0.5220622]
[1737205826548,0.01025037,103160.0,103150.0,0.41431929]
[1737205826970,0.01025037,103160.0,103150.0,0.5220622]
[1737205827444,0.01025037,103160.0,103150.0,0.19618681]
[1737205828384,0.21011789,103160.0,103150.0,0.096946]
[1737205828815,0.21011789,103160.0,103150.0,0.246946]
[1737205829381,0.11011789,103160.0,103150.0,0.096946]
[1737205832958,0.01025037,103160.0,103150.0,0.45489907]
[1737205833164,0.01025037,103160.0,103150.0,0.45392972]
[1737205833695,0.01025037,103160.0,103150.0,0.4770622]
[1737205833896,0.01025037,103160.0,103150.0,0.4831422]
[1737205835007,3.7e-07,103160.0,103150.0,0.48300972]
[1737205835222,3.7e-07,103160.0,103150.0,0.4831422]
[1737205843304,3.7e-07,103160.0,103150.0,0.4835704]
[1737205843504,0.00089959,103160.0,103150.0,0.4835704]
[1737205844331,0.00089959,103160.0,103150.0,0.51375758]
[1737205844563,0.0832,103190.0,103180.0,0.096918]
[1737205844775,0.0832,103190.0,103180.0,0.45390172]
[1737205845153,0.0832,103190.0,103180.0,0.34615881]
[1737205845367,0.2253,103200.0,103180.0,0.35698372]
[1737205845586,0.1253,103200.0,103190.0,0.34711777]
[1737205845791,0.1253,103200.0,103190.0,0.34631757]
[1737205847984,0.12292794,103200.0,103190.0,0.34631757]
[1737205850929,0.12292794,103200.0,103190.0,0.35687994]
[1737205853202,0.22279546,103200.0,103190.0,0.25763913]
[1737205856120,0.22369385,103200.0,103190.0,0.25763913]
[1737205861633,0.32369385,103200.0,103190.0,0.10763913]
[1737205862350,0.22382633,103200.0,103190.0,0.10763913]
[1737205862906,0.33156924,103200.0,103190.0,0.10763913]
[1737205863109,0.33156924,103200.0,103190.0,0.09707676]
[1737205863334,0.22382633,103200.0,103190.0,0.09707676]
[1737205864919,0.12382633,103200.0,103190.0,0.34728654]
[1737205865131,0.08109839,103200.0,103190.0,0.34631757]
[1737205866873,0.00089839,103200.0,103190.0,0.45406048]
[1737205867254,0.00089839,103200.0,103190.0,0.53726048]
[1737205868032,0.00089839,103200.0,103190.0,0.53782076]
[1737205868218,3.9e-07,103200.0,103190.0,0.57409002]
[1737205868832,6.1e-07,103210.0,103200.0,0.15013248]
[1737205869037,6.1e-07,103210.0,103200.0,0.59291603]
[1737205869241,6.1e-07,103210.0,103200.0,0.59194737]
[1737205869669,6.1e-07,103210.0,103200.0,0.48420446]
[1737205871491,6.1e-07,103210.0,103200.0,0.59194737]
[1737205872958,6.1e-07,103210.0,103200.0,0.60264716]
[1737205873902,6.1e-07,103210.0,103200.0,0.49490425]
[1737205875050,0.01000061,103210.0,103200.0,0.49490425]
[1737205878511,0.01000061,103210.0,103200.0,0.46471499]
[1737205878983,0.01000061,103210.0,103200.0,0.49483557]
[1737205879468,0.01000061,103210.0,103200.0,0.50483657]
[1737205879671,0.01000061,103210.0,103200.0,0.49483557]
[1737205879878,0.01000061,103210.0,103200.0,0.46514279]
[1737205880311,0.01000061,103210.0,103200.0,0.49526706]
[1737205880678,0.01000061,103210.0,103200.0,0.46514279]
[1737205881070,0.01000061,103210.0,103200.0,0.3572674]
[1737205881437,0.01000061,103210.0,103200.0,0.35739988]
[1737205881634,0.01000061,103210.0,103200.0,0.46514279]
[1737205883954,6.1e-07,103210.0,103200.0,0.5728857]
[1737205884124,6.1e-07,103210.0,103200.0,0.6783075]
[1737205884505,0.00089901,103220.0,103210.0,0.096889]
[1737205884506,0.00085962,103220.0,103210.0,0.096889]
[1737205884710,0.00085962,103220.0,103210.0,0.30387272]
[1737205886390,0.00085962,103220.0,103210.0,0.3040052]
[1737205890704,0.00085962,103220.0,103210.0,0.4540052]
[1737205891953,6.2e-07,103220.0,103210.0,0.4830852]
[1737205892156,6.2e-07,103220.0,103210.0,0.51320785]
[1737205892358,2.6e-07,103230.0,103220.0,0.24701248]
[1737205892555,2.6e-07,103230.0,103220.0,0.4539962]
[1737205892760,2.6e-07,103230.0,103220.0,0.4769962]
[1737205893076,2.6e-07,103230.0,103220.0,0.50711798]
[1737205893309,1.77416283,103240.0,103230.0,0.09700348]
[1737205893511,1.77416283,103240.0,103230.0,0.56269858]
[1737205893838,1.77416283,103240.0,103230.0,0.56173011]
[1737205894122,1.69667483,103240.0,103230.0,0.56173011]
[1737205894332,1.67730283,103240.0,103230.0,0.56173011]
[1737205894550,1.67780813,103240.0,103230.0,0.56173011]
[1737205894912,1.67780813,103240.0,103230.0,0.58473011]
[1737205895131,1.61969213,103240.0,103230.0,0.58473011]
[1737205895305,1.60032013,103240.0,103230.0,0.58473011]
[1737205895538,1.58094813,103240.0,103230.0,0.58473011]
[1737205895914,1.57634102,103240.0,103230.0,0.66053011]
[1737205896099,1.49885302,103240.0,103230.0,0.66053011]
[1737205896480,1.49885302,103240.0,103230.0,0.77749576]
[1737205896481,1.26895995,103240.0,103230.0,0.77749576]
[1737205896826,1.26895995,103240.0,103230.0,0.74740675]
[1737205897042,1.24958795,103240.0,103230.0,0.74740675]
[1737205897301,1.21084395,103240.0,103230.0,0.74740675]
[1737205897612,1.17209995,103240.0,103230.0,0.74740675]
[1737205898032,1.17209995,103240.0,103230.0,0.7774806]
[1737205898465,1.13335595,103240.0,103230.0,0.74740675]
[1737205898660,1.09461195,103240.0,103230.0,0.77747827]
[1737205898917,1.09461195,103240.0,103230.0,0.74740675]
[1737205898918,1.07523995,103240.0,103230.0,0.74740675]
[1737205899134,1.05586795,103240.0,103230.0,0.74740675]
[1737205899343,1.01712395,103240.0,103230.0,0.77747827]
[1737205900141,0.95100795,103240.0,103230.0,0.69060163]
[1737205900317,0.91226395,103240.0,103230.0,0.69060163]
[1737205901101,0.86151995,103240.0,103230.0,0.69060163]
[1737205901297,0.78236223,103240.0,103230.0,0.7010482]
[1737205901514,0.76936223,103240.0,103230.0,0.7010482]
[1737205901731,0.75636223,103240.0,103230.0,0.7010482]
[1737205902129,0.64750223,103240.0,103230.0,0.7493482]
[1737205903050,0.60875823,103240.0,103230.0,0.7493482]
[1737205903230,0.55064223,103240.0,103230.0,0.7493482]
[1737205903444,0.52877479,103240.0,103230.0,0.7493482]
[1737205903655,0.52602831,103240.0,103230.0,0.7493482]
[1737205904005,0.52602831,103240.0,103230.0,0.7071282]
[1737205904266,0.44854031,103240.0,103230.0,0.6313282]
[1737205904468,0.42916831,103240.0,103230.0,0.60125668]
[1737205904779,0.43006648,103240.0,103230.0,0.60125668]
[1737205905273,0.43006648,103240.0,103230.0,0.20655838]
[1737205905475,0.55306648,103240.0,103230.0,0.20655838]
[1737205905675,0.55306648,103240.0,103230.0,0.21263838]
[1737205906039,0.55306648,103240.0,103230.0,0.35655838]
[1737205906428,0.55306648,103240.0,103230.0,0.20655838]
[1737205907231,0.55306648,103240.0,103230.0,0.35655838]
[1737205907735,0.55306648,103240.0,103230.0,0.46430129]
[1737205908907,0.55306648,103240.0,103230.0,0.46443377]
[1737205909270,0.50646648,103240.0,103230.0,0.46443377]
[1737205911366,0.50633079,103240.0,103230.0,0.46443377]
[1737205914265,0.42993079,103240.0,103230.0,0.46443377]
[1737205914485,0.39118679,103240.0,103230.0,0.57217668]
[1737205914700,0.33307079,103240.0,103230.0,0.59517668]
[1737205915308,0.27495479,103240.0,103230.0,0.59517668]
[1737205915970,0.27495479,103240.0,103230.0,0.48743377]
[1737205916352,0.27495479,103240.0,103230.0,0.57431041]
[1737205916551,0.27495479,103240.0,103230.0,0.57473811]
[1737205917578,0.27495479,103240.0,103230.0,0.48772899]
[1737205918488,0.39795479,103240.0,103230.0,0.46472899]
[1737205922696,0.39795479,103240.0,103230.0,0.57260438]
[1737205923079,0.39795479,103240.0,103230.0,0.46486147]
[1737205923281,0.39795479,103240.0,103230.0,0.57260438]
[1737205923496,0.39795479,103240.0,103230.0,0.46472899]
[1737205923704,0.39795479,103240.0,103230.0,0.46486147]
[1737205924563,0.39795479,103240.0,103230.0,0.47090147]
[1737205925269,0.40795479,103240.0,103230.0,0.50105494]
[1737205925972,0.28495479,103240.0,103230.0,0.60879785]
[1737205926409,0.28495479,103240.0,103230.0,0.50105494]
[1737205928295,0.28495479,103240.0,103230.0,0.60879785]
[1737205930016,0.33155479,103240.0,103230.0,0.50105494]
[1737205930207,0.33155479,103240.0,103230.0,0.58793158]
[1737205931022,0.33155479,103240.0,103230.0,0.69567449]
[1737205931411,0.33155479,103240.0,103230.0,0.82598945]
[1737205931612,0.33155479,103240.0,103230.0,0.71824654]
[1737205932118,0.33155479,103240.0,103230.0,0.82598945]
[1737205932323,0.33155479,103240.0,103230.0,0.71220654]
[1737205932516,0.33155479,103240.0,103230.0,0.71824654]
[1737205932716,0.33155479,103240.0,103230.0,0.82598945]
[1737205932915,0.33155479,103240.0,103230.0,0.69567449]
[1737205933654,0.28495479,103240.0,103230.0,0.71867449]
[1737205934048,0.22683879,103240.0,103230.0,0.71867449]
[1737205934426,0.22683879,103240.0,103230.0,0.84898945]
[1737205934907,0.12997879,103240.0,103230.0,0.84898945]
[1737205935048,0.07394236,103240.0,103230.0,0.84898945]
[1737205935413,0.07799922,103260.0,103250.0,0.00013248]
[1737205935543,0.07799922,103260.0,103250.0,0.30510529]
[1737205935745,0.07799922,103260.0,103250.0,0.30413696]
[1737205936566,0.00089922,103260.0,103250.0,0.58487987]
[1737205936811,0.00089922,103260.0,103250.0,0.47713696]
[1737205938452,0.00089922,103260.0,103250.0,0.56399258]
[1737205939992,0.00089922,103260.0,103250.0,0.67173549]
[1737205940191,0.00089922,103260.0,103250.0,0.56399258]
[1737205940402,0.00089922,103260.0,103250.0,0.67173549]
[1737205940607,0.00089922,103260.0,103250.0,0.71044349]
[1737205941103,0.00089922,103260.0,103250.0,0.74063045]
[1737205941890,0.00089922,103260.0,103250.0,0.75082434]
[1737205942994,0.00089922,103260.0,103250.0,0.96803696]
[1737205943202,0.00089922,103260.0,103250.0,0.86029405]
[1737205943402,0.00089922,103260.0,103250.0,0.75255114]
[1737205943614,0.00089922,103260.0,103250.0,0.96803696]
[1737205944429,0.00089922,103260.0,103250.0,1.18522857]
[1737205945038,0.01089922,103260.0,103250.0,1.18522857]
[1737205945214,0.01085922,103260.0,103250.0,1.18522857]
[1737205945808,0.01085922,103260.0,103250.0,1.13701361]
[1737205946474,2.2e-07,103260.0,103250.0,1.13701361]
[1737205947067,2.2e-07,103260.0,103250.0,1.00669865]
[1737205948971,2.2e-07,103260.0,103250.0,1.31399865]
[1737205949178,2.2e-07,103260.0,103250.0,1.53102002]
[1737205950128,2.2e-07,103260.0,103250.0,1.44892002]
[1737205950510,2.2e-07,103260.0,103250.0,1.23189865]
[1737205951006,2.2e-07,103260.0,103250.0,1.29002865]
[1737205951381,0.00089839,103260.0,103250.0,1.29002865]
[1737205951824,0.00089839,103260.0,103250.0,1.20294347]
[1737205953065,0.00089839,103260.0,103250.0,1.41985489]
[1737205953445,3.9e-07,103260.0,103250.0,1.41985489]
[1737205954959,3.9e-07,103260.0,103250.0,1.11255489]
[1737205956057,3.9e-07,103260.0,103250.0,1.05442489]
[1737205956426,0.1249,103280.0,103260.0,0.17313248]
[1737205956630,0.1249,103280.0,103270.0,0.48395731]
[1737205956834,0.1249,103280.0,103270.0,0.51317616]
[1737205958108,0.082,103290.0,103280.0,0.00013248]
[1737205958287,0.06294335,103290.0,103280.0,0.67154322]
[1737205958596,0.06294335,103290.0,103280.0,0.80842881]
[1737205959596,0.04899859,103300.0,103290.0,0.26994648]
[1737205959824,0.04899859,103300.0,103290.0,0.58467311]
[1737205960589,0.00089859,103300.0,103290.0,0.58467311]
[1737205960797,0.00089859,103300.0,103290.0,0.58484187]
[1737205960996,2e-08,103310.0,103300.0,0.26993748]
[1737205961199,0.00089901,103330.0,103320.0,0.24691848]
[1737205961400,0.08289901,103330.0,103320.0,0.56164511]
[1737205962524,0.08289901,103330.0,103320.0,0.45376972]
[1737205963266,0.08289901,103330.0,103320.0,0.45980972]
[1737205963825,0.08289901,103330.0,103320.0,0.35206681]
[1737205964127,0.12809901,103330.0,103320.0,0.35193112]
[1737205964356,0.12809901,103330.0,103320.0,0.34589112]
[1737205964526,0.12809901,103330.0,103320.0,0.35193112]
[1737205965503,0.12809901,103330.0,103320.0,0.36218149]
[1737205966459,0.12809901,103330.0,103320.0,0.35614149]
[1737205966865,0.32796653,103330.0,103320.0,0.35614149]
[1737205967588,0.22809901,103330.0,103320.0,0.24665031]
[1737205967738,0.12809901,103330.0,103320.0,0.09665031]
[1737205968129,0.06509901,103330.0,103320.0,0.09665031]
[1737205968330,0.17284192,103330.0,103320.0,0.09665031]
[1737205968560,0.16187601,103330.0,103320.0,0.09665031]
[1737205968979,0.06509901,103330.0,103320.0,0.09665031]
[1737205969153,0.17284192,103330.0,103320.0,0.09665031]
[1737205969328,0.06509901,103330.0,103320.0,0.09665031]
[1737205972395,0.06509901,103330.0,103320.0,0.09764061]
[1737205974027,0.26496653,103330.0,103320.0,0.19688142]
[1737205974743,0.16509901,103330.0,103320.0,0.19688142]
[1737205975174,0.16496653,103330.0,103320.0,0.19688142]
[1737205975359,0.26496653,103330.0,103320.0,0.19688142]
[1737205975559,0.26496653,103330.0,103320.0,0.34777875]
[1737205975872,0.26539383,103330.0,103320.0,0.34777875]
[1737205976820,0.06552631,103330.0,103320.0,0.34777875]
[1737205977586,0.16552631,103330.0,103320.0,0.34777875]
[1737205981102,0.26539383,103330.0,103320.0,0.34777875]
[1737205981301,0.16552631,103330.0,103320.0,0.24853794]
[1737205981713,0.06552631,103330.0,103320.0,0.24853794]
[1737205982356,0.17326922,103330.0,103320.0,0.09853794]
[1737205982757,0.06552631,103330.0,103320.0,0.09853794]
[1737205983975,0.17326922,103330.0,103320.0,0.09853794]
[1737205985516,0.27004622,103330.0,103320.0,0.09853794]
[1737205986896,0.06552631,103330.0,103320.0,0.09853794]
[1737205987393,0.16539383,103330.0,103320.0,0.09853794]
[1737205987605,0.16539383,103330.0,103320.0,0.19777875]
[1737205991976,0.16552631,103330.0,103320.0,0.19777875]
[1737205992175,0.26539383,103330.0,103320.0,0.19777875]
[1737205992679,0.26539383,103330.0,103320.0,0.34777875]
[1737205992873,0.27539383,103330.0,103320.0,0.34777875]
[1737205997203,0.28004622,103330.0,103320.0,0.09853794]
[1737205997491,0.07552631,103330.0,103320.0,0.09853794]
[1737205999761,0.17539383,103330.0,103320.0,0.19777875]
[1737205999993,0.13032631,103330.0,103320.0,0.19777875]
[1737206000224,0.23019383,103330.0,103320.0,0.19777875]
[1737206000370,0.13032631,103330.0,103320.0,0.19777875]
[1737206000777,0.13032631,103330.0,103320.0,0.34777875]
[1737206001187,0.23019383,103330.0,103320.0,0.34777875]
[1737206003935,0.72796356,103330.0,103320.0,0.00188763]
[1737206004355,0.68932994,103330.0,103320.0,0.00188763]
[1737206005004,0.58932994,103330.0,103320.0,0.00188763]
[1737206005405,0.63932994,103330.0,103320.0,0.00188763]
[1737206006113,1.37642853,103330.0,103320.0,0.00188763]
[1737206006344,0.18704291,103300.0,103290.0,0.07886939]
[1737206006472,0.09986752,103290.0,103280.0,0.20364229]
[1737206006672,0.09986752,103290.0,103280.0,0.54986587]
[1737206006932,0.14736752,103290.0,103280.0,0.53985658]
[1737206008000,0.09986752,103290.0,103280.0,0.53985658]
[1737206009089,0.20761043,103290.0,103280.0,0.24940758]
[1737206009295,0.39489982,103290.0,103280.0,0.00016677]
[1737206009497,0.28715691,103290.0,103280.0,0.00016677]
[1737206009696,0.28715691,103290.0,103280.0,0.00106536]
[1737206010255,0.28715691,103290.0,103280.0,0.09788936]
[1737206013822,0.28715691,103290.0,103280.0,0.00106536]
[1737206014972,0.39489982,103290.0,103280.0,0.00106536]
[1737206015379,0.29715691,103290.0,103280.0,0.00106536]
[1737206016194,0.29715691,103290.0,103280.0,0.09788936]
[1737206017055,0.29715691,103290.0,103280.0,0.00106536]
[1737206018106,0.45249982,103290.0,103280.0,0.00106536]
[1737206018698,0.47080182,103290.0,103280.0,0.00106536]
[1737206019610,0.36305891,103290.0,103280.0,0.00106536]
[1737206021266,0.36348701,103290.0,103280.0,0.00106536]
[1737206021960,0.34518501,103290.0,103280.0,0.00106536]
[1737206022235,0.36348701,103290.0,103280.0,0.00106536]
[1737206024798,0.36348701,103290.0,103280.0,0.09788936]
[1737206025929,0.36348701,103290.0,103280.0,0.00106536]
[1737206026691,0.92047073,103290.0,103280.0,0.00106536]
[1737206026891,0.72047073,103290.0,103280.0,0.00106536]
[1737206028214,0.74347073,103290.0,103280.0,0.00106536]
[1737206028759,0.82974108,103290.0,103280.0,0.00106536]
[1737206029872,1.35750186,103290.0,103280.0,0.00106536]
[1737206029999,0.1,103270.0,103250.0,0.00089796]
[1737206030205,0.28648491,103260.0,103250.0,0.09791788]
[1737206030406,0.30478691,103260.0,103250.0,0.09791788]
[1737206032896,0.30478691,103260.0,103250.0,0.00106588]
[1737206033547,0.30478691,103260.0,103250.0,0.09791788]
[1737206034374,0.30478691,103260.0,103250.0,0.00106588]
[1737206034701,0.30478691,103260.0,103250.0,0.09791788]
[1737206036075,0.61101144,103260.0,103250.0,0.00106588]
[1737206036247,0.71101144,103260.0,103250.0,0.00106588]
[1737206037038,0.61177063,103260.0,103250.0,0.00106588]
[1737206037419,0.50402772,103260.0,103250.0,0.00106588]
[1737206040770,0.40402772,103260.0,103250.0,0.00106588]
[1737206040968,0.30478691,103260.0,103250.0,0.09791788]
[1737206041174,0.30478691,103260.0,103250.0,0.00106588]
[1737206041387,0.40478691,103260.0,103250.0,0.00106588]
[1737206041542,0.49860051,103260.0,103250.0,0.00106588]
[1737206041758,0.40478691,103260.0,103250.0,0.00106588]
[1737206050160,0.297044,103260.0,103250.0,0.00106588]
[1737206050344,0.3907108,103260.0,103250.0,0.00106588]
[1737206050566,0.4907108,103260.0,103250.0,0.00106588]
[1737206051451,0.62011633,103260.0,103250.0,0.00106588]
[1737206053615,0.79265704,103260.0,103250.0,0.00106588]
[1737206055069,0.84176581,103260.0,103250.0,0.00106588]
[1737206055429,0.79265704,103260.0,103250.0,0.00106588]
[1737206055704,0.69265704,103260.0,103250.0,0.00106588]
[1737206055876,0.79265704,103260.0,103250.0,0.00106588]
[1737206056636,0.69265704,103260.0,103250.0,0.00106588]
[1737206056841,0.79265704,103260.0,103250.0,0.00106588]
[1737206057258,0.69265704,103260.0,103250.0,0.00106588]
[1737206057663,0.79265704,103260.0,103250.0,0.00106588]
[1737206058635,0.71075704,103260.0,103250.0,0.00106588]
[1737206065602,0.60301413,103260.0,103250.0,0.00106588]
[1737206065897,0.71075704,103260.0,103250.0,0.00106588]
[1737206066865,0.50603965,103260.0,103250.0,0.17891788]
[1737206067290,0.61378256,103260.0,103250.0,0.17891788]
[1737206067899,0.44124185,103260.0,103250.0,0.17891788]
[1737206069069,0.22591243,103260.0,103250.0,0.17891788]
[1737206069619,0.11816952,103260.0,103250.0,0.17891788]
[1737206070579,0.11816952,103260.0,103250.0,0.27815869]
[1737206072613,0.21816952,103260.0,103250.0,0.27815869]
[1737206072816,0.118302,103260.0,103250.0,0.27815869]
[1737206073017,0.118302,103260.0,103250.0,0.28834587]
[1737206073018,0.30409341,103260.0,103250.0,0.28834587]
[1737206073218,0.20422589,103260.0,103250.0,0.28834587]
[1737206073558,0.20409341,103260.0,103250.0,0.28834587]
[1737206073781,0.30409341,103260.0,103250.0,0.28834587]
[1737206074001,0.10422589,103260.0,103250.0,0.28834587]
[1737206074199,0.20422589,103260.0,103250.0,0.28834587]
[1737206074462,0.21532942,103270.0,103260.0,0.143942]
[1737206074796,0.32307233,103270.0,103260.0,0.096842]
[1737206075156,0.41990533,103270.0,103260.0,0.096842]
[1737206075627,0.19986752,103260.0,103250.0,0.53278606]
[1737206075839,0.30761043,103260.0,103250.0,0.63202687]
[1737206076042,0.19986752,103260.0,103250.0,0.63202687]
[1737206078804,0.09986752,103260.0,103250.0,0.55102687]
[1737206079099,0.10774291,103260.0,103250.0,0.44159888]
[1737206079412,0.10774291,103260.0,103250.0,0.29159888]
[1737206080152,0.20458491,103260.0,103250.0,0.00106588]
[1737206080347,0.20458491,103260.0,103250.0,0.09791788]
[1737206081190,0.10774291,103260.0,103250.0,0.09791788]
[1737206081575,0.1936668,103260.0,103250.0,0.09791788]
[1737206082427,0.10774291,103260.0,103250.0,0.09791788]
[1737206083379,0.11774291,103260.0,103250.0,0.09791788]
[1737206084328,0.21458491,103260.0,103250.0,0.09791788]
[1737206084664,0.11774291,103260.0,103250.0,0.09791788]
[1737206085243,0.21458491,103260.0,103250.0,0.09791788]
[1737206085437,0.11774291,103260.0,103250.0,0.09791788]
[1737206089115,0.01,103260.0,103250.0,0.09791788]
[1737206089317,0.10986752,103260.0,103250.0,0.09791788]
[1737206089952,0.01,103260.0,103250.0,0.09791788]
[1737206091278,0.11774291,103260.0,103250.0,0.09791788]
[1737206092652,0.01,103260.0,103250.0,0.09791788]
[1737206096976,0.11774291,103260.0,103250.0,0.09791788]
[1737206097549,0.01,103260.0,103250.0,0.09791788]
[1737206100432,0.11,103260.0,103250.0,0.27795869]
[1737206100607,0.01,103260.0,103250.0,0.27795869]
[1737206100791,0.11,103260.0,103250.0,0.45095869]
[1737206101024,0.31761043,103260.0,103250.0,0.27795869]
[1737206101231,0.44722782,103260.0,103250.0,0.00106588]
[1737206101771,0.35778691,103260.0,103250.0,0.00106588]
[1737206102998,0.26094491,103260.0,103250.0,0.09791788]
[1737206103136,0.23912589,103260.0,103250.0,0.09791788]
[1737206103341,0.11422589,103260.0,103250.0,0.09791788]
[1737206103544,0.21409341,103260.0,103250.0,0.09791788]
[1737206104578,0.12816952,103260.0,103250.0,0.09791788]
[1737206106283,0.12816952,103260.0,103250.0,0.10768065]
[1737206109580,0.13604491,103260.0,103250.0,0.09791788]
[1737206110008,0.11774291,103260.0,103250.0,0.09791788]
[1737206111182,0.01,103260.0,103250.0,0.09791788]
[1737206118546,0.11774291,103260.0,103250.0,0.09791788]
[1737206120800,0.01,103260.0,103250.0,0.09791788]
[1737206123472,0.09592389,103260.0,103250.0,0.09791788]
[1737206127555,0.16683911,103260.0,103250.0,0.09791788]
[1737206129023,0.26368111,103260.0,103250.0,0.09791788]
[1737206129214,0.16683911,103260.0,103250.0,0.09791788]